bitfinex/quotes_ETHUSD_20241216
["timestamp","ask_amount","ask_price","bid_price","bid_amount"]
[1734374209870,0.89,4050.4,4047.6,0.23718271]
[1734374210161,0.89,4050.4,4045.7,0.753]
[1734374210162,3.36904677,4048.6,4045.7,0.753]
[1734374210326,0.25,4049.1,4045.7,0.753]
[1734374210327,3.36904677,4047.5,4045.7,0.753]
[1734374210897,3.36904677,4048.0,4045.7,0.753]
[1734374211083,0.02469168,4047.9,4045.7,2.232]
[1734374211393,0.02469168,4048.9,4046.0,1.479]
[1734374211687,0.33937385,4048.8,4046.1,0.02470377]
[1734374212274,0.02469168,4048.7,4046.1,0.02470377]
[1734374212474,0.02469168,4048.7,4046.2,1.479]
[1734374212715,0.02469168,4048.7,4046.3,2.05370366]
[1734374214486,0.33937385,4048.8,4046.3,2.05370366]
[1734374214689,0.39800291,4048.7,4046.3,2.05370366]
[1734374215017,0.75193916,4050.3,4046.4,0.7792]
[1734374215186,0.25,4051.3,4046.4,0.7792]
[1734374215187,0.1653901,4051.4,4048.9,0.39800291]
[1734374215387,0.1653901,4051.4,4048.1,1.479]
[1734374215388,0.1653901,4051.4,4049.1,2.029]
[1734374215623,0.1653901,4051.4,4049.3,1.479]
[1734374215779,0.1653901,4051.4,4049.2,1.45102771]
[1734374215780,0.1653901,4051.4,4049.7,0.7792]
[1734374215976,0.1653901,4051.4,4049.8,2.00102495]
[1734374216204,0.1653901,4051.4,4049.8,6.48002495]
[1734374216428,1e-07,4051.4,4050.0,1.479]
[1734374216591,1e-07,4051.4,4050.1,2.00102247]
[1734374216772,1e-07,4051.4,4050.1,5.00102247]
[1734374217411,1e-07,4051.4,4050.1,2.00102247]
[1734374217833,1e-07,4051.4,4050.1,5.00102247]
[1734374217996,0.85600752,4052.8,4050.1,5.00102247]
[1734374218434,0.85600752,4052.8,4050.1,2.00102247]
[1734374221018,0.55,4052.5,4050.2,0.7675]
[1734374221200,1.10600752,4052.8,4052.2,3.0]
[1734374221201,0.85600752,4052.8,4052.2,3.0]
[1734374221389,0.85600752,4052.8,4050.3,0.02468402]
[1734374222135,0.85600752,4052.8,4050.4,0.7826]
[1734374222297,0.85600752,4052.8,4050.5,0.5746769]
[1734374222505,0.85600752,4052.8,4050.6,0.32953473]
[1734374222807,0.85600752,4052.8,4050.7,0.5746769]
[1734374223843,0.85600752,4052.8,4050.8,0.8328]
[1734374224047,0.85600752,4052.8,4050.9,0.57467673]
[1734374224848,0.85600752,4052.8,4050.9,0.57467674]
[1734374225330,0.002,4053.0,4050.9,0.57467674]
[1734374225648,0.8328,4052.9,4050.9,0.57467674]
[1734374226158,0.8328,4052.9,4050.9,0.55]
[1734374226437,0.8328,4052.9,4051.0,0.02467663]
[1734374227744,3.31961033,4054.1,4051.8,0.25]
[1734374227946,1.12861403,4054.0,4051.8,0.25]
[1734374228615,0.8328,4052.8,4051.8,0.25]
[1734374229028,1.12861403,4054.0,4053.1,3.0]
[1734374229235,0.8328,4053.9,4053.3,3.0]
[1734374229520,0.8328,4053.9,4052.1,0.25]
[1734374229741,0.1411414,4053.8,4052.1,0.25]
[1734374230962,0.1411414,4053.8,4052.1,0.24323906]
[1734374231873,3.78371961,4053.6,4051.8,0.24323906]
[1734374232045,3.78371961,4053.6,4053.1,3.0]
[1734374232359,0.02467382,4053.5,4051.1,0.24255193]
[1734374232554,0.55,4053.3,4051.1,0.24255193]
[1734374232758,0.02467382,4053.2,4051.1,0.24255193]
[1734374233141,0.02467382,4053.2,4051.2,0.7504]
[1734374233832,0.02467382,4053.3,4051.2,0.7504]
[1734374234355,0.02467382,4053.3,4052.3,3.0]
[1734374234558,0.62753334,4053.4,4051.8,0.24255193]
[1734374234770,0.1411414,4053.8,4052.9,3.0]
[1734374234916,0.16581522,4053.8,4052.9,3.0]
[1734374235118,0.16581522,4053.8,4051.8,0.24255193]
[1734374235531,0.16581522,4053.8,4052.9,3.0]
[1734374235759,3.78371961,4053.6,4051.8,0.24255193]
[1734374235974,0.4196273,4053.5,4053.0,3.0]
[1734374236568,0.4196273,4053.5,4051.3,0.24255193]
[1734374236776,0.55,4053.4,4051.3,0.24255193]
[1734374237073,0.02467382,4053.3,4051.3,0.24255193]
[1734374238345,0.43326759,4053.2,4051.3,0.24255193]
[1734374238542,0.02467382,4053.1,4051.3,0.24255193]
[1734374238863,0.02467382,4053.1,4051.3,0.59536432]
[1734374239031,0.43326759,4053.2,4052.8,3.0]
[1734374239388,0.02467382,4053.7,4052.0,0.24255193]
[1734374241567,0.85747382,4053.9,4052.0,0.24255193]
[1734374241732,0.02467382,4053.7,4052.0,0.24255193]
[1734374242745,0.02467382,4053.7,4053.1,3.0]
[1734374243098,0.57467382,4053.7,4053.1,3.0]
[1734374243411,3.36304858,4053.3,4052.7,3.0]
[1734374243531,3.3877224,4053.3,4051.6,0.24255193]
[1734374243728,0.02467382,4053.3,4051.6,0.24255193]
[1734374244684,0.57467382,4053.5,4051.6,0.24255193]
[1734374244842,0.02467382,4053.5,4051.6,1.14255193]
[1734374245027,0.30077702,4053.4,4051.6,1.14255193]
[1734374245227,0.02467382,4053.3,4051.6,1.14255193]
[1734374246188,0.02467382,4053.5,4051.6,1.14255193]
[1734374248362,0.02467382,4053.5,4051.6,0.9]
[1734374248668,0.57467382,4053.5,4051.6,0.9]
[1734374248865,0.13408402,4053.4,4051.6,0.9]
[1734374249097,0.02467382,4053.3,4051.6,0.9]
[1734374249815,0.02467382,4053.3,4051.6,1.14255193]
[1734374250173,0.02467382,4053.5,4051.6,1.14255193]
[1734374251719,0.02467382,4053.5,4051.9,1.06185193]
[1734374251917,0.02467382,4053.7,4051.9,1.06185193]
[1734374252266,0.17359789,4053.7,4051.9,1.06185193]
[1734374252468,0.8328,4053.9,4051.9,1.06185193]
[1734374252469,0.8328,4053.9,4053.2,0.24255193]
[1734374252705,0.8328,4053.9,4053.3,0.7437155]
[1734374253114,0.01,4054.5,4053.5,0.24255193]
[1734374253322,0.7737,4055.1,4054.8,3.0]
[1734374253469,0.7737,4055.1,4054.6,0.37296879]
[1734374253669,0.49110913,4055.3,4054.6,0.37296879]
[1734374253670,0.37757,4054.9,4054.6,0.37296879]
[1734374253870,0.86407813,4055.3,4054.6,0.8048]
[1734374254083,3.36304858,4054.9,4054.0,0.24255193]
[1734374254406,3.52843868,4055.4,4054.4,0.24255193]
[1734374255204,0.1653901,4055.4,4054.5,0.8051]
[1734374255409,0.1653901,4055.4,4054.5,1.10789867]
[1734374255619,1e-05,4055.0,4054.5,0.8051]
[1734374257432,1e-05,4055.0,4052.1,1.4910307]
[1734374257433,3.36304858,4054.7,4054.0,0.24255193]
[1734374257630,3.36304858,4054.2,4053.4,0.24255193]
[1734374257940,3.36304858,4054.2,4051.7,1.4910307]
[1734374257941,3.36304858,4053.7,4052.8,0.8033]
[1734374258143,3.36304858,4053.7,4053.1,0.24255193]
[1734374258433,3.36304858,4054.2,4053.1,0.24255193]
[1734374260136,3.36304858,4054.7,4053.9,0.24255193]
[1734374261628,3.69935444,4054.7,4053.9,0.24255193]
[1734374262347,0.02467382,4054.6,4053.4,0.24255193]
[1734374262930,3.69935444,4054.7,4053.4,0.24255193]
[1734374263332,1e-05,4055.0,4054.3,0.24255193]
[1734374263644,1e-05,4055.0,4054.6,0.24255193]
[1734374264304,1e-05,4055.0,4054.4,0.7653]
[1734374264649,1e-05,4055.0,4054.6,0.24255193]
[1734374265503,1e-05,4055.0,4054.4,0.7653]
[1734374266416,1e-05,4055.0,4054.2,0.24255193]
[1734374268209,1e-05,4055.0,4054.6,0.24255193]
[1734374269831,1e-05,4055.0,4054.2,0.24255193]
[1734374274078,3.36304858,4054.6,4054.2,0.24255193]
[1734374276736,0.1653901,4055.4,4054.6,0.24255193]
[1734374276928,0.1653901,4055.4,4055.2,1.05135193]
[1734374277959,0.1653901,4055.4,4055.2,0.24255193]
[1734374278516,1.020125,4056.1,4055.6,0.24255193]
[1734374278517,0.0348,4056.1,4055.6,0.24255193]
[1734374278717,0.0348,4056.1,4055.3,1.07938211]
[1734374278937,0.0348,4056.1,4054.3,0.55]
[1734374278938,0.0348,4056.1,4054.9,0.24255193]
[1734374279263,0.0348,4056.1,4055.1,0.24255193]
[1734374280835,3.39784858,4056.1,4054.8,1.00835193]
[1734374281167,3.39784858,4056.1,4055.1,0.24255193]
[1734374281168,0.33978486,4056.0,4055.1,0.24255193]
[1734374281348,0.33978486,4056.0,4054.3,0.24255193]
[1734374281349,3.36304858,4055.6,4054.3,0.24255193]
[1734374281574,3.36304858,4055.6,4052.5,1.98804094]
[1734374281575,0.02467382,4055.5,4054.0,0.24255193]
[1734374281753,0.02467382,4055.5,4053.9,0.8063]
[1734374281754,0.02467382,4055.5,4054.1,0.24255193]
[1734374282062,0.33877224,4055.5,4054.1,0.24255193]
[1734374282415,0.02467382,4056.0,4054.1,0.24255193]
[1734374282631,0.02467382,4056.0,4054.2,0.33144245]
[1734374282971,0.02467382,4056.0,4054.1,0.24255193]
[1734374283257,0.57467382,4056.0,4054.1,0.24255193]
[1734374283460,0.02467382,4056.0,4055.1,0.24255193]
[1734374283657,0.34225224,4055.9,4055.1,0.24255193]
[1734374283866,3.39784858,4056.1,4056.0,3.0]
[1734374284216,3.39784858,4056.1,4055.1,0.24255193]
[1734374284463,0.02467382,4056.0,4054.7,0.24255193]
[1734374284661,0.02467382,4056.0,4054.3,0.24255193]
[1734374284878,0.02467382,4056.0,4055.6,3.0]
[1734374285022,0.34225224,4055.9,4054.4,0.29933215]
[1734374285222,0.02467382,4055.9,4054.4,0.54188408]
[1734374285751,0.02467382,4055.9,4054.7,0.24255193]
[1734374286386,0.0348,4056.1,4055.6,3.0]
[1734374286387,0.05947382,4056.1,4055.6,3.0]
[1734374286690,0.0348,4056.1,4055.6,3.0]
[1734374287005,0.0348,4056.1,4054.7,0.24255193]
[1734374287153,0.0348,4056.1,4054.6,0.24255193]
[1734374287784,0.02467382,4056.0,4055.4,3.0]
[1734374287962,0.25248338,4055.9,4054.6,0.24255193]
[1734374288161,0.02467382,4055.8,4054.6,0.24255193]
[1734374288395,2.49029382,4055.8,4054.0,0.24255193]
[1734374288692,2.49029382,4055.8,4055.2,3.0]
[1734374288693,0.24902938,4055.7,4055.2,3.0]
[1734374288846,0.24902938,4055.7,4054.4,0.24255193]
[1734374289078,0.02467382,4055.6,4055.2,3.0]
[1734374289353,5.86328858,4056.1,4054.4,0.24255193]
[1734374289354,0.0348,4056.1,4054.4,0.24255193]
[1734374289584,0.0348,4056.1,4054.4,1.01375193]
[1734374290387,0.0348,4056.1,4054.4,0.24255193]
[1734374290388,0.05947382,4056.1,4054.4,0.24255193]
[1734374290896,0.05947382,4056.1,4055.5,3.0]
[1734374290897,0.0348,4056.1,4055.5,3.0]
[1734374291195,0.0348,4056.1,4055.3,0.24255193]
[1734374291401,0.0348,4056.1,4055.4,0.7871]
[1734374291893,0.0348,4056.1,4055.7,0.24255193]
[1734374291894,1e-05,4056.1,4055.7,0.24255193]
[1734374292079,1e-05,4056.1,4056.0,0.55]
[1734374292283,1e-05,4056.1,4056.0,1.1569126]
[1734374292505,1e-05,4056.1,4056.0,1.7544125]
[1734374292653,1e-05,4056.1,4056.0,4.7544125]
[1734374293307,6.37099,4057.0,4056.8,2.029]
[1734374293608,6.37099,4057.0,4056.9,1.39005183]
[1734374294499,6.37099,4057.0,4056.9,5.57381374]
[1734374295467,1.97039173,4057.0,4056.9,8.23383643]
[1734374295666,1.97039173,4057.0,4056.9,9.47424681]
[1734374295883,1.80733546,4057.0,4056.9,9.47424681]
[1734374296058,1.80733546,4057.0,4056.9,6.75483643]
[1734374296256,1.80733546,4057.0,4056.9,4.87825193]
[1734374296456,1.80733546,4057.0,4056.9,10.12088734]
[1734374297170,1.6944033,4057.0,4056.9,10.12088734]
[1734374297497,1.6944033,4057.0,4056.9,10.41546598]
[1734374297498,1.3790383,4057.0,4056.9,10.41546598]
[1734374297668,1.29982401,4057.0,4056.9,12.47935398]
[1734374298198,1.10065817,4057.0,4056.9,10.41546598]
[1734374298402,0.02172489,4057.6,4057.3,1.07235193]
[1734374298605,0.02172489,4057.6,4057.4,0.57463733]
[1734374298807,0.02172489,4057.6,4057.5,4.3798]
[1734374299127,0.01,4058.6,4058.1,0.55]
[1734374299128,4.89e-06,4058.2,4058.1,0.55]
[1734374299259,0.01,4058.6,4058.5,0.79255193]
[1734374299260,4.89e-06,4058.6,4058.5,0.79255193]
[1734374299454,4.89e-06,4058.6,4058.5,1.55618734]
[1734374300357,4.89e-06,4058.6,4058.5,1.15742552]
[1734374300788,4.89e-06,4058.6,4058.5,0.79255193]
[1734374301302,4.89e-06,4058.6,4058.5,1.15742552]
[1734374301796,4.89e-06,4058.6,4058.5,1.55618734]
[1734374301955,4.89e-06,4058.6,4058.5,2.31498734]
[1734374302157,0.1653901,4059.4,4058.5,5.64578318]
[1734374302377,0.1653901,4059.4,4058.4,1.729]
[1734374302378,0.1653901,4059.4,4058.9,1.55135193]
[1734374302602,0.1653901,4059.4,4058.9,2.32915401]
[1734374302907,1.58233733,4059.0,4058.9,2.32915401]
[1734374303096,1.20524914,4059.0,4058.9,2.32915401]
[1734374303393,0.86641627,4059.0,4058.9,2.35378375]
[1734374303603,0.58200799,4059.0,4058.9,1.97474349]
[1734374303807,0.13771109,4059.0,4058.9,2.23545108]
[1734374303957,0.1653901,4059.4,4059.3,0.24255193]
[1734374304201,0.1653901,4059.4,4059.3,2.32811092]
[1734374304401,0.03453038,4060.5,4060.1,0.79255193]
[1734374304650,0.03453038,4060.5,4060.1,1.49390484]
[1734374305000,0.03453038,4060.5,4060.1,2.28970484]
[1734374307228,0.03453038,4060.5,4060.1,2.38741675]
[1734374307401,0.03453038,4060.5,4060.4,0.79255193]
[1734374307717,0.03453038,4060.5,4060.4,2.34080692]
[1734374307931,2.17e-06,4061.2,4060.9,0.79255193]
[1734374308134,2.17e-06,4061.2,4061.0,0.55]
[1734374308333,2.72404872,4061.8,4061.7,0.79255193]
[1734374308334,2.67021089,4061.8,4061.7,0.79255193]
[1734374308562,2.67021089,4061.8,4061.7,0.24255193]
[1734374308732,2.67021089,4061.8,4061.7,0.64774511]
[1734374309248,2.67021089,4061.8,4061.7,1.19774511]
[1734374309431,2.67021089,4061.8,4061.7,0.24255193]
[1734374309950,2.67021089,4061.8,4061.7,0.64774511]
[1734374310151,2.67021089,4061.8,4061.7,0.79255193]
[1734374311304,2.67021089,4061.8,4061.7,0.24255193]
[1734374311435,3.03713198,4061.8,4061.7,0.24255193]
[1734374311942,3.80573198,4061.8,4061.7,0.24255193]
[1734374312138,2.67021089,4061.8,4061.7,0.24255193]
[1734374312337,2.67021089,4061.8,4061.7,5.51880692]
[1734374312835,2.67021089,4061.8,4061.7,0.24255193]
[1734374313035,2.67021089,4061.8,4061.7,0.79255193]
[1734374314086,2.67021089,4061.8,4061.7,1.99894511]
[1734374314374,0.999,4062.0,4061.9,1.479]
[1734374314581,0.999,4062.0,4061.9,5.82625499]
[1734374314935,0.999,4062.0,4061.9,6.63895499]
[1734374315131,0.0179147,4062.3,4062.2,2.27155193]
[1734374315388,0.983072,4065.7,4062.9,12.59100574]
[1734374315685,0.7544,4065.6,4062.9,7.19193008]
[1734374316177,4.02467382,4066.0,4062.9,7.19193008]
[1734374316338,4.0,4066.0,4062.9,7.19193008]
[1734374316707,4.0,4066.0,4064.8,0.24255193]
[1734374316897,4.0,4066.0,4064.8,0.60027998]
[1734374317378,0.8547387,4064.9,4064.2,0.24255193]
[1734374317576,0.8547387,4064.9,4060.4,2.0]
[1734374317577,0.42197873,4064.8,4063.8,0.24255193]
[1734374317993,0.42197873,4064.8,4064.2,0.24255193]
[1734374318193,0.8547387,4064.9,4064.6,0.24255193]
[1734374318407,0.8547387,4064.9,4064.0,0.24255193]
[1734374318555,2.9966974,4067.4,4064.6,0.24255193]
[1734374318757,0.25596852,4070.5,4064.6,0.24255193]
[1734374318758,0.02467382,4067.3,4065.8,3.0]
[1734374318983,3.36304858,4065.9,4065.6,3.0]
[1734374319292,2.45924,4066.3,4065.7,8.73]
[1734374319464,0.12269131,4066.8,4064.4,8.73]
[1734374319465,2.45896,4066.8,4064.4,8.73]
[1734374319676,2.45896,4066.8,4062.6,0.62526033]
[1734374319677,3.36304858,4064.8,4064.7,8.73]
[1734374319977,3.69935344,4064.8,4064.7,8.73]
[1734374320293,3.36304858,4064.8,4064.7,8.73]
[1734374320895,2.45929,4066.3,4064.8,8.73]
[1734374321094,3.36304858,4065.1,4065.0,11.73]
[1734374321685,4.19274858,4065.1,4065.0,11.73]
[1734374321985,0.8297,4065.1,4065.0,11.73]
[1734374322168,3.38429107,4065.5,4065.4,10.9003]
[1734374322353,0.332683,4067.2,4065.8,7.9003]
[1734374322354,3.38429107,4066.0,4065.8,7.9003]
[1734374322555,0.332683,4067.2,4066.8,10.9003]
[1734374322802,3.38429107,4066.9,4066.7,3.0]
[1734374323023,3.38429107,4066.9,4066.8,3.0]
[1734374323024,3.75598848,4066.9,4066.8,3.0]
[1734374323495,3.75598848,4066.9,4066.8,10.9003]
[1734374324028,3.75598848,4066.9,4066.8,7.9003]
[1734374324524,0.37169741,4066.9,4066.8,7.9003]
[1734374324736,3.38429107,4066.9,4066.8,7.9003]
[1734374325233,4.16619107,4066.9,4066.8,7.9003]
[1734374325432,4.16619107,4066.9,4066.8,10.9003]
[1734374327786,4.16619107,4066.9,4066.8,7.9003]
[1734374327988,0.7737,4066.8,4065.3,0.25]
[1734374328191,3.38429107,4066.4,4065.9,0.49594]
[1734374328393,0.7737,4066.8,4066.1,0.24593]
[1734374328714,0.7737,4066.8,4065.8,3.44]
[1734374328715,0.7737,4066.4,4065.8,3.44]
[1734374328889,0.7737,4066.4,4065.0,0.24599]
[1734374328890,0.7737,4065.9,4065.3,0.25]
[1734374329409,1.42878713,4066.5,4065.5,0.49597]
[1734374329608,1.42878713,4066.5,4065.5,0.24597]
[1734374329916,1.42878713,4066.5,4065.3,1.24598]
[1734374330117,0.38878471,4066.4,4065.3,1.24598]
[1734374330336,1.42878713,4066.5,4065.3,1.24598]
[1734374330629,1.42878713,4066.5,4065.3,1.0]
[1734374331233,1.42878713,4066.5,4065.4,0.24597]
[1734374331536,1.42878713,4066.5,4065.3,1.0]
[1734374331836,1.42878713,4066.5,4065.5,0.24597]
[1734374332042,0.14287871,4066.4,4065.5,0.24597]
[1734374332201,0.0939,4066.3,4065.5,0.24597]
[1734374332588,0.0939,4066.3,4065.7,0.24595]
[1734374332792,0.0939,4066.3,4065.5,0.24596]
[1734374333005,0.0939,4066.3,4065.3,1.0]
[1734374333188,0.0939,4066.0,4065.3,1.0]
[1734374333502,2.45978,4065.4,4064.4,3.44]
[1734374333703,3.38330417,4065.6,4064.1,3.44]
[1734374333704,2.4601,4064.9,4064.1,3.44]
[1734374333898,3.38330417,4065.6,4063.6,0.365473]
[1734374333899,0.0939,4064.8,4064.2,3.44]
[1734374334102,0.0939,4064.8,4064.5,0.25]
[1734374334334,3.38330417,4066.1,4064.5,0.25]
[1734374334536,0.43223042,4066.0,4064.8,0.5]
[1734374334834,0.0939,4066.0,4065.0,0.246]
[1734374335038,0.0939,4066.0,4065.1,3.68599]
[1734374335240,0.0939,4066.0,4065.2,3.44]
[1734374335404,0.0939,4066.0,4065.6,3.44]
[1734374335605,0.0939,4066.0,4065.7,3.44]
[1734374335805,0.2557744,4065.9,4065.7,3.0]
[1734374336493,3.38330417,4066.8,4065.6,3.44]
[1734374336494,0.28091444,4065.8,4065.6,3.44]
[1734374336699,0.0939,4065.7,4065.6,6.44]
[1734374336893,2.5535,4065.7,4065.6,3.44]
[1734374337315,3.38330417,4065.8,4063.6,0.361553]
[1734374337495,0.0939,4064.8,4063.6,0.115473]
[1734374337829,2.55406,4064.8,4063.7,3.44]
[1734374338047,0.0939,4064.7,4063.8,3.44]
[1734374338237,0.0939,4064.4,4063.8,3.44]
[1734374338527,2.4604,4064.4,4063.8,3.44]
[1734374338731,2.46006,4065.0,4063.6,0.115473]
[1734374338732,0.0939,4064.0,4063.6,0.115473]
[1734374338943,2.55471,4063.7,4063.6,0.115473]
[1734374339730,3.38330417,4064.2,4062.2,0.24616]
[1734374339933,0.0939,4063.4,4062.0,3.68618]
[1734374340246,0.0939,4063.2,4062.1,3.0]
[1734374340642,0.0939,4063.2,4062.4,0.25]
[1734374340851,0.0939,4063.2,4062.7,0.25]
[1734374341002,0.0939,4063.2,4062.7,0.24614]
[1734374341703,0.0939,4063.2,4062.7,0.24613]
[1734374341924,0.0939,4063.2,4062.5,0.25]
[1734374342153,0.0939,4064.1,4063.4,0.24609]
[1734374342471,0.0939,4064.1,4063.1,3.0]
[1734374342623,0.0939,4064.1,4063.0,3.44]
[1734374342624,0.0939,4064.1,4063.0,3.0]
[1734374342825,0.0939,4064.1,4063.0,3.24611]
[1734374343022,0.0939,4064.1,4063.0,3.0]
[1734374343847,0.0939,4064.1,4063.4,0.24609]
[1734374344253,0.0939,4064.1,4063.3,0.2461]
[1734374344455,0.0939,4064.1,4063.0,3.0]
[1734374344770,0.0939,4064.1,4063.2,3.25]
[1734374345072,0.02777456,4065.1,4064.0,0.24606]
[1734374345274,0.0939,4065.0,4063.8,3.66222544]
[1734374345584,0.0939,4065.0,4064.9,3.246]
[1734374345736,0.0939,4066.2,4065.4,0.24597]
[1734374346083,0.0939,4066.2,4065.4,0.22222544]
[1734374346084,0.43223042,4066.2,4065.4,0.22222544]
[1734374346240,0.0939,4066.2,4065.5,0.25]
[1734374346442,0.12098488,4066.6,4065.5,0.25]
[1734374346443,0.12098488,4066.6,4065.8,0.46817544]
[1734374346643,0.0939,4066.7,4066.4,0.24591]
[1734374346855,0.0939,4066.7,4065.8,0.22222544]
[1734374347578,0.0939,4066.7,4066.2,0.24592]
[1734374347866,0.44162042,4066.7,4065.9,0.24594]
[1734374348102,0.44162042,4066.7,4066.2,0.24592]
[1734374348279,0.44162042,4066.7,4065.3,0.22222544]
[1734374348280,0.0939,4066.4,4065.3,0.22222544]
[1734374348488,0.0939,4066.4,4066.0,0.24594]
[1734374348771,0.47639246,4066.4,4066.2,0.24592]
[1734374348923,0.0939,4066.4,4066.3,0.24592]
[1734374349775,0.0939,4066.4,4065.6,0.22222544]
[1734374350064,0.0939,4066.4,4065.8,0.24595]
[1734374350637,0.0939,4066.4,4065.8,0.24325154]
[1734374350864,0.34772042,4066.3,4065.8,0.24325154]
[1734374351071,0.34772042,4066.3,4065.6,0.22222544]
[1734374351276,0.0939,4066.4,4066.2,0.24592]
[1734374351648,0.0939,4066.4,4065.6,0.46818544]
[1734374351849,3.38330417,4067.0,4065.6,1.03562544]
[1734374351850,3.47720417,4067.0,4065.6,1.03562544]
[1734374352246,3.47720417,4067.0,4066.4,0.24591]
[1734374352575,3.47720417,4067.0,4066.1,0.24593]
[1734374352735,3.38330417,4066.5,4065.5,3.0]
[1734374352930,0.0939,4066.4,4065.9,0.24594]
[1734374353133,0.0939,4066.4,4066.0,0.24594]
[1734374353337,0.0939,4066.4,4065.7,0.25]
[1734374353531,0.0939,4066.9,4066.4,0.24591]
[1734374353754,0.0939,4066.9,4065.9,0.46816544]
[1734374353755,0.0939,4066.9,4066.0,0.25]
[1734374353957,0.37329423,4066.8,4066.1,3.0]
[1734374354456,0.37329423,4066.8,4066.6,0.2459]
[1734374354653,0.37329423,4066.8,4066.3,0.24591]
[1734374354978,3.38330417,4066.6,4066.1,3.0]
[1734374355179,3.38330417,4066.6,4066.4,0.24591]
[1734374355709,3.38330417,4066.6,4066.1,3.0]
[1734374355859,3.38330417,4066.6,4066.3,0.24592]
[1734374356059,0.33833042,4066.5,4066.1,3.24593]
[1734374356254,0.33833042,4066.5,4066.1,3.0]
[1734374356493,0.33833042,4066.5,4066.2,0.24592]
[1734374357074,0.33833042,4066.5,4065.6,0.61063751]
[1734374357075,0.0939,4066.2,4065.6,0.61063751]
[1734374357256,0.0939,4066.2,4064.4,0.25]
[1734374357257,0.0939,4065.6,4064.4,0.22222544]
[1734374357458,3.38330417,4064.8,4064.4,0.22222544]
[1734374357693,3.38330417,4064.8,4063.7,0.24607]
[1734374357694,0.0939,4064.7,4063.7,0.24607]
[1734374358010,0.0939,4064.7,4063.2,0.2461]
[1734374358011,3.38330417,4064.3,4063.9,0.22222544]
[1734374358900,0.33833042,4066.5,4065.1,0.25]
[1734374359116,0.46024808,4067.2,4065.1,0.25]
[1734374359117,0.002,4065.8,4065.7,0.24595]
[1734374359318,0.002,4065.8,4065.7,0.71817544]
[1734374359460,0.00981014,4066.6,4066.4,0.24591]
[1734374359461,0.00717626,4066.6,4066.4,0.24591]
[1734374360262,0.00717626,4066.6,4066.2,0.24592]
[1734374360562,0.00717626,4066.6,4066.0,0.22222544]
[1734374360908,0.00717626,4066.6,4066.3,0.24592]
[1734374361209,0.00717626,4066.6,4066.0,0.46816544]
[1734374361412,0.00717626,4066.6,4066.2,0.24592]
[1734374361563,0.00717626,4066.6,4066.0,0.22222544]
[1734374362261,0.00717626,4066.6,4065.5,3.0]
[1734374362262,0.34622055,4066.6,4065.5,3.0]
[1734374362483,0.34622055,4066.6,4065.3,0.25]
[1734374362484,0.34622055,4066.6,4065.8,0.22222544]
[1734374362806,0.34622055,4066.6,4066.1,0.24593]
[1734374363701,0.00717626,4066.6,4065.8,0.22222544]
[1734374363864,0.00717626,4066.6,4066.4,0.24591]
[1734374364778,0.46024808,4067.2,4066.1,0.22222544]
[1734374364959,0.332683,4067.2,4066.1,0.46815544]
[1734374365164,0.332683,4067.2,4066.7,0.24589]
[1734374365566,0.55,4066.7,4064.6,0.99483392]
[1734374365767,0.55,4066.7,4064.5,0.42222544]
[1734374365768,0.24589,4065.9,4064.8,0.246]
[1734374365975,0.24589,4065.9,4064.5,0.42222544]
[1734374366707,0.24589,4065.9,4064.7,0.24601]
[1734374367001,0.24589,4065.9,4064.9,0.22222544]
[1734374367201,0.24589,4065.9,4064.7,3.0]
[1734374367410,0.65106507,4065.9,4064.9,0.22222544]
[1734374367622,0.65106507,4065.9,4064.5,0.42222544]
[1734374367906,0.65106507,4065.9,4064.9,0.22222544]
[1734374368138,0.65106507,4065.9,4064.5,0.2]
[1734374368278,0.65106507,4065.9,4064.5,0.42222544]
[1734374368606,2.45996,4065.1,4064.5,0.2]
[1734374368807,0.245996,4065.0,4064.5,0.2]
[1734374368983,3.8058607,4065.6,4064.5,0.2]
[1734374369183,6.2655707,4065.6,4064.5,0.2]
[1734374369431,0.65106507,4065.9,4064.6,0.25]
[1734374369602,0.24589,4065.9,4065.0,0.22222544]
[1734374370075,0.24589,4065.9,4065.7,0.25]
[1734374370473,0.24589,4065.9,4065.8,0.47222544]
[1734374370729,0.24589,4065.9,4065.8,6.91222544]
[1734374371233,0.24589,4065.9,4065.5,0.8245]
[1734374371234,0.332683,4067.2,4066.9,0.24588]
[1734374371512,0.332683,4067.2,4066.7,0.8245]
[1734374371718,0.332683,4067.2,4066.9,0.24588]
[1734374371936,0.332683,4067.2,4066.5,0.2459]
[1734374372141,0.332683,4067.2,4066.4,0.24591]
[1734374372344,0.332683,4067.2,4066.5,0.22222544]
[1734374372649,2.45882,4067.0,4065.9,0.47222544]
[1734374372852,0.2791273,4067.1,4065.9,0.47222544]
[1734374373016,0.2791273,4067.1,4065.9,0.71816544]
[1734374373351,0.2791273,4067.1,4066.1,0.24593]
[1734374373534,0.30704803,4067.0,4066.1,0.24593]
[1734374373838,0.30704803,4067.0,4065.9,0.47222544]
[1734374374047,0.30704803,4067.0,4066.3,0.22222544]
[1734374374217,0.332683,4067.2,4066.3,0.22222544]
[1734374374745,0.01936832,4066.8,4066.3,0.22222544]
[1734374375940,0.01936832,4066.8,4066.3,0.47222544]
[1734374376117,0.01936832,4066.8,4066.3,0.22222544]
[1734374377129,0.01936832,4066.8,4066.0,0.47222544]
[1734374377332,0.26718015,4066.8,4066.0,0.71815544]
[1734374377652,0.01936832,4066.8,4065.9,0.22222544]
[1734374377804,2.45901,4066.7,4065.9,0.22222544]
[1734374378146,2.45901,4066.7,4065.4,0.24597]
[1734374378147,2.45918,4066.4,4065.4,0.22222544]
[1734374378644,0.56936832,4066.8,4065.4,0.22222544]
[1734374378945,2.45946,4066.0,4064.9,0.25]
[1734374379099,2.45946,4066.0,4065.2,0.22222544]
[1734374379560,2.45929,4066.2,4065.2,0.22222544]
[1734374379746,2.45937,4066.1,4065.2,0.22222544]
[1734374380074,3.8058607,4065.7,4064.5,0.2]
[1734374380560,2.45929,4066.2,4065.0,0.22222544]
[1734374380762,3.8058607,4066.3,4065.1,0.24599]
[1734374380963,2.45929,4066.2,4065.0,0.22222544]
[1734374381175,3.8058607,4066.3,4065.0,0.17222544]